bitfinex/quotes_ETHUSD_20260131
["timestamp","ask_amount","ask_price","bid_price","bid_amount"]
[1769819247436,4.71303613,2708.5,2707.5,13.55404729]
[1769819247769,0.92303613,2708.5,2707.5,13.55404729]
[1769819249070,14.02374681,2708.5,2707.5,13.55404729]
[1769819249268,14.02374681,2708.5,2707.6,13.52502877]
[1769819250276,14.02374681,2708.5,2707.7,0.92329283]
[1769819252976,14.02374681,2708.5,2707.7,13.554002]
[1769819255471,0.001,2708.3,2707.7,13.554002]
[1769819256040,13.10171068,2708.3,2707.6,0.8943196]
[1769819256350,13.10171068,2708.3,2707.3,12.63070917]
[1769819256351,13.10071068,2708.1,2707.5,0.92335757]
[1769819256545,13.10071068,2708.1,2707.4,0.92337117]
[1769819256751,13.10071068,2708.1,2707.3,13.55412476]
[1769819257154,0.92319054,2708.0,2707.3,13.55412476]
[1769819257687,13.76858209,2708.0,2707.3,13.55412476]
[1769819257878,13.76858209,2708.0,2707.2,0.92453652]
[1769819258252,13.76858209,2708.0,2707.3,0.92342491]
[1769819258986,13.76858209,2708.0,2707.2,0.92453473]
[1769819261664,13.76858209,2708.0,2707.2,14.02660368]
[1769819261864,15.64572433,2708.0,2707.2,14.02660368]
[1769819267204,15.64572433,2708.0,2707.4,0.0011]
[1769819267373,0.001,2707.8,2707.4,0.0011]
[1769819270286,0.001,2707.8,2707.4,13.10316895]
[1769819272711,0.001,2707.8,2707.5,0.92336103]
[1769819273273,0.001,2707.8,2707.5,14.66628744]
[1769819273880,0.001,2707.8,2707.5,0.92336103]
[1769819274709,0.001,2708.3,2707.5,14.66628744]
[1769819280120,0.001,2708.3,2707.8,13.74292641]
[1769819280322,0.001,2708.1,2707.8,13.74292641]
[1769819281013,0.001,2708.1,2707.9,0.92322463]
[1769819281798,0.001,2708.1,2707.8,0.92323446]
[1769819282414,13.83257842,2708.1,2707.7,0.92436796]
[1769819283190,0.001,2708.1,2707.7,0.0011]
[1769819283508,0.001,2708.1,2707.7,1.37561264]
[1769819285918,0.001,2708.1,2707.8,0.92325873]
[1769819289323,0.001,2708.3,2707.8,14.67035034]
[1769819292034,0.001,2708.3,2707.8,0.92325873]
[1769819292198,0.001,2707.9,2707.8,1.70624661]
[1769819292398,0.001,2708.3,2707.8,1.70624661]
[1769819295320,3.69127398,2709.1,2707.8,1.70624661]
[1769819295321,13.19572291,2708.9,2707.9,13.74709161]
[1769819295523,14.11857125,2709.1,2708.1,13.74709161]
[1769819297321,14.11857125,2709.1,2708.2,0.92312236]
[1769819297522,14.11857125,2709.1,2708.2,14.67021397]
[1769819297707,14.11854319,2709.1,2708.2,14.67021397]
[1769819297907,14.11854319,2709.1,2708.3,0.78298788]
[1769819298838,13.19572291,2709.1,2708.3,0.78298788]
[1769819299204,13.19572291,2709.1,2708.3,14.53007949]
[1769819299407,13.19572291,2709.1,2708.4,0.9230542]
[1769819301849,13.19572291,2709.4,2708.4,14.67014581]
[1769819302048,13.19572291,2709.4,2708.5,15.12160425]
[1769819303558,0.001,2708.9,2708.5,15.12160425]
[1769819303856,0.001,2708.9,2708.6,0.92298604]
[1769819306883,0.001,2708.9,2708.6,14.67007765]
[1769819307088,0.001,2708.9,2708.7,0.78298788]
[1769819308784,0.35478963,2710.1,2708.8,14.6700095]
[1769819308785,14.11839778,2709.6,2708.8,14.6700095]
[1769819309088,14.11839778,2709.6,2708.8,0.92291789]
[1769819311085,14.11839778,2709.6,2708.7,3.69167435]
[1769819315076,0.001,2709.4,2708.7,3.69167435]
[1769819315397,13.19672291,2709.4,2708.7,3.69167435]
[1769819316596,14.1194394,2709.4,2708.7,3.69167435]
[1769819318000,13.19672291,2709.4,2708.7,3.69167435]
[1769819319108,14.11943832,2709.4,2708.7,3.69167435]
[1769819319899,14.11943832,2709.4,2708.6,0.92296654]
[1769819320105,13.28918213,2709.2,2708.6,0.92296654]
[1769819321191,13.28918213,2709.2,2708.4,14.17995415]
[1769819327100,13.28918213,2709.2,2708.6,0.0011]
[1769819327301,13.29018213,2709.2,2708.6,0.0011]
[1769819328701,14.21297122,2709.2,2708.6,0.0011]
[1769819330320,16.00336799,2709.2,2708.6,0.0011]
[1769819340225,16.00336799,2709.2,2708.8,0.0011]
[1769819340428,0.001,2709.0,2708.8,0.0011]
[1769819340917,13.29018213,2709.0,2708.4,0.0011]
[1769819343245,13.28918213,2708.8,2708.4,0.0011]
[1769819343448,13.28918213,2708.6,2708.4,0.0011]
[1769819343638,1.4212066,2708.7,2708.4,0.0011]
[1769819344548,0.92288382,2708.9,2708.4,0.0011]
[1769819352029,0.92288382,2708.9,2708.6,0.0011]
[1769819352431,0.001,2708.7,2708.6,0.0011]
[1769819384633,0.001,2709.0,2708.6,13.57198464]
[1769819384790,0.92271351,2709.4,2708.7,14.9280831]
[1769819384987,14.52203466,2709.4,2708.7,13.57088464]
[1769819385212,14.52203466,2709.4,2708.6,0.0011]
[1769819387721,14.52203466,2709.4,2708.6,13.57198464]
[1769819388016,0.92271351,2709.4,2708.6,13.57198464]
[1769819388714,14.52203466,2709.4,2708.6,13.57198464]
[1769819389013,1.82131612,2709.3,2708.6,13.57198464]
[1769819389401,0.001,2709.2,2708.6,13.57198464]
[1769819390229,0.92378163,2709.2,2708.6,13.57198464]
[1769819390526,0.001,2709.2,2708.6,14.49495249]
[1769819390698,0.001,2709.2,2708.7,1.81869459]
[1769819390912,0.001,2709.2,2708.7,13.57088464]
[1769819394229,17.28966126,2709.8,2708.7,14.49380568]
[1769819394524,13.59932115,2709.7,2708.7,0.92292104]
[1769819394826,13.59932115,2709.7,2708.7,14.49380568]
[1769819395527,13.59932115,2709.7,2708.7,0.92292104]
[1769819395898,13.59932115,2709.7,2708.6,0.92406188]
[1769819396105,3.69034011,2709.8,2708.6,0.92406188]
[1769819396106,13.59932115,2709.5,2708.6,0.92406188]
[1769819396425,14.52203466,2709.4,2708.6,0.92406188]
[1769819396629,14.52203466,2709.4,2708.6,0.0011]
[1769819401006,14.52203466,2709.4,2708.8,0.0011]
[1769819401210,14.52203466,2709.4,2708.6,0.0011]
[1769819401509,13.60032115,2709.2,2708.6,0.0011]
[1769819401702,13.59932115,2709.0,2707.7,0.0011]
[1769819401902,13.59932115,2708.7,2707.7,0.0011]
[1769819402097,13.59932115,2708.5,2707.7,0.0011]
[1769819402817,13.59932115,2708.3,2707.7,0.0011]
[1769819405434,14.52244351,2708.2,2707.7,0.0011]
[1769819411044,0.92312236,2708.2,2707.7,0.0011]
[1769819411244,14.78313059,2708.2,2707.7,0.0011]
[1769819411450,1.84756201,2708.1,2707.7,0.0011]
[1769819413148,0.92319054,2708.0,2707.9,0.0011]
[1769819413442,0.92319054,2708.0,2707.7,0.0011]
[1769819415950,14.78309651,2708.3,2707.7,0.0011]
[1769819416151,1.8475586,2708.2,2707.7,0.0011]
[1769819416322,15.70756683,2708.2,2707.7,0.0011]
[1769819416825,1.8475586,2708.2,2707.7,0.0011]
[1769819418049,0.92315645,2708.1,2707.7,0.0011]
[1769819424858,3.69254258,2708.2,2707.9,0.0011]
[1769819425031,1.84756732,2708.1,2707.9,0.0011]
[1769819427662,2.77075394,2708.1,2707.9,0.0011]
[1769819431052,2.77075394,2708.1,2707.7,0.0011]
[1769819435342,0.92318662,2708.1,2707.7,0.0011]
[1769819436541,0.92318662,2708.1,2707.9,0.0011]
[1769819437178,0.92318662,2708.1,2707.7,0.0011]
[1769819438175,13.1120655,2708.4,2707.7,0.0011]
[1769819439881,14.96210938,2708.4,2707.7,0.0011]
[1769819440500,0.92308828,2708.3,2707.7,0.0011]
[1769819440796,0.92284976,2709.0,2707.7,12.29117988]
[1769819441157,0.001,2709.2,2707.7,12.29117988]
[1769819441158,0.92380584,2709.2,2708.0,12.29007988]
[1769819441801,14.03587134,2709.2,2708.0,12.29007988]
[1769819441966,15.07461109,2709.1,2708.2,12.29007988]
[1769819442296,18.57410097,2709.1,2707.8,12.29007988]
[1769819442497,13.1120655,2709.0,2707.8,12.29007988]
[1769819442665,13.1120655,2709.0,2707.8,13.21332063]
[1769819442666,13.1120655,2708.8,2707.8,13.21332063]
[1769819442867,14.88471396,2708.8,2707.9,1.76805548]
[1769819445000,13.1120655,2708.6,2707.9,1.76805548]
[1769819447106,0.92302012,2708.5,2707.9,1.76805548]
[1769819447320,0.92302012,2708.5,2707.8,13.21333025]
[1769819448303,0.92302012,2708.5,2707.9,0.0011]
[1769819448810,0.001,2708.4,2707.9,0.0011]
[1769819455616,10.03608562,2708.6,2707.9,0.0011]
[1769819456516,0.92297561,2708.7,2707.9,14.05934896]
[1769819457812,13.1120655,2709.0,2708.0,0.92319054]
[1769819457813,0.92288382,2708.9,2708.0,0.92319054]
[1769819458019,0.92288382,2708.9,2708.1,12.67941132]
[1769819458916,14.03494932,2708.9,2708.1,12.67941132]
[1769819460210,0.001,2708.5,2708.1,12.67941132]
[1769819464298,0.001,2708.5,2708.1,13.60256363]
[1769819464500,0.001,2708.5,2708.2,1.36025636]
[1769819470522,11.98690907,2709.1,2708.3,12.04880818]
[1769819470725,0.92380452,2709.2,2708.3,12.04880818]
[1769819470915,0.92380452,2709.2,2708.5,12.04880818]
[1769819474136,0.92380452,2709.2,2708.5,12.9717953]
[1769819477320,0.001,2709.2,2708.5,12.9717953]
[1769819479861,0.001,2709.2,2708.5,13.7447953]
[1769819483643,0.001,2709.0,2708.5,13.7447953]
[1769819483962,0.001,2709.0,2708.7,12.04880818]
[1769819484364,0.001,2709.0,2708.8,0.92291789]
[1769819485139,0.001,2709.0,2708.6,1.31229185]
[1769819485360,0.001,2709.0,2708.6,0.38933144]
[1769819486535,11.98790907,2709.0,2708.5,1.69601637]
[1769819494142,11.98790907,2709.0,2708.5,0.773]
[1769819495378,11.98790907,2709.0,2708.5,1.69601419]
[1769819498882,12.91076014,2709.0,2708.5,0.773]
[1769819499282,14.57095047,2709.0,2708.5,0.773]
[1769819499688,14.57095047,2709.0,2708.4,0.92302982]
[1769819502695,14.57095047,2709.0,2708.3,0.0011]
[1769819503298,13.6480994,2709.0,2708.3,0.0011]
[1769819503455,11.98790907,2709.0,2708.3,0.0011]
[1769819507292,11.98790907,2709.0,2708.5,0.0011]
[1769819507465,0.001,2708.8,2708.5,0.0011]
[1769819508103,12.33890675,2708.8,2708.5,0.0011]
[1769819508400,13.57179743,2708.7,2708.5,0.0011]
[1769819510024,14.49475065,2708.7,2708.5,0.0011]
[1769819511524,13.57179743,2708.7,2708.5,0.0011]
[1769819513906,14.4947573,2708.7,2708.5,0.0011]
[1769819517429,12.33790675,2708.7,2708.5,0.0011]
[1769819518426,13.26086531,2708.7,2708.5,0.0011]
[1769819520332,13.26086531,2708.7,2708.0,0.0011]
[1769819520644,12.33790675,2708.4,2707.5,0.0011]
[1769819522212,12.33790675,2708.2,2707.5,0.0011]
[1769819522412,12.33790675,2708.2,2707.4,0.0011]
[1769819522612,12.33790675,2708.2,2707.2,0.0011]
[1769819522613,12.33790675,2708.1,2707.2,0.0011]
[1769819522838,12.33790675,2707.8,2707.2,0.0011]
[1769819524036,5.45808036,2707.9,2707.2,0.0011]
[1769819524037,12.33790675,2707.6,2707.2,0.0011]
[1769819524428,0.92336103,2707.5,2707.2,0.0011]
[1769819531651,0.001,2707.4,2707.2,0.0011]
[1769819537763,5.9231757,2708.1,2707.2,11.7485195]
[1769819538057,5.9231757,2708.1,2707.2,12.92359145]
[1769819538233,0.9231757,2708.1,2707.2,12.92359145]
[1769819539144,0.92298604,2708.6,2707.4,11.7474195]
[1769819539343,0.92298604,2708.6,2707.6,11.7474195]
[1769819541736,0.92298604,2708.6,2707.8,11.7474195]
[1769819543055,0.001,2708.4,2707.8,11.7474195]
[1769819544363,0.001,2708.8,2707.9,11.7474195]
[1769819544565,0.001,2708.8,2708.1,11.7474195]
[1769819544754,12.27629698,2708.6,2707.7,0.92327213]
[1769819545261,12.27629698,2708.6,2707.3,11.7474195]
[1769819545437,12.27629698,2708.4,2707.4,0.92337417]
[1769819545834,12.27629698,2708.1,2707.2,0.0011]
[1769819546672,0.92311249,2708.3,2707.3,11.7474195]
[1769819546966,13.19940947,2708.3,2707.4,1.17485195]
[1769819547165,13.19940947,2708.3,2707.2,11.7485195]
[1769819549171,13.19940947,2708.3,2707.3,12.67084874]
[1769819553436,12.27629698,2708.2,2707.2,0.92453928]
[1769819553736,6.38547931,2708.3,2707.2,0.92453928]
[1769819553737,12.27629698,2708.0,2707.2,0.92453928]
[1769819554362,12.27629698,2708.0,2707.3,0.92341615]
[1769819556268,13.19950387,2708.0,2707.2,3.69494726]
[1769819557384,13.19950387,2708.0,2707.2,0.0011]
[1769819562457,11.995663,2707.9,2707.2,0.0011]
[1769819562663,11.995663,2707.7,2707.2,0.0011]
[1769819563776,12.91898993,2707.6,2707.2,0.0011]
[1769819565972,12.91898993,2707.6,2707.4,0.0011]
[1769819566173,12.91898993,2707.6,2707.2,0.0011]
[1769819571404,12.91898993,2707.6,2707.0,0.0011]
[1769819571606,13.65689277,2707.5,2707.0,0.0011]
[1769819571973,1.66122977,2707.5,2707.0,0.0011]
[1769819572178,1.66122977,2707.5,2707.0,11.10601513]
[1769819572405,0.92332693,2707.6,2707.0,11.10601513]
[1769819573115,3.69330772,2707.7,2707.0,11.10601513]
[1769819574215,15.68897072,2707.7,2707.0,0.0011]
[1769819576512,0.92336103,2707.5,2707.0,0.0011]
[1769819577722,0.92436103,2707.5,2707.0,0.0011]
[1769819577918,2.58570356,2707.5,2707.0,0.0011]
[1769819580986,2.58570356,2707.5,2706.6,3.69566661]
[1769819580987,11.995663,2707.0,2706.1,1e-08]
[1769819581240,12.768663,2707.0,2705.9,0.0011]
[1769819581524,11.995663,2706.8,2705.9,8.71903562]
[1769819582097,11.995663,2706.8,2705.9,0.0011]
[1769819583213,11.995663,2706.6,2705.9,0.0011]
[1769819584515,5.0,2706.9,2706.3,8.80360805]
[1769819585233,0.92350575,2707.1,2706.3,9.72735097]
[1769819587616,0.92346335,2707.2,2706.3,9.72735097]
[1769819587825,0.92346335,2707.2,2706.4,10.19021221]
[1769819588237,12.28595236,2707.2,2706.4,1.27691972]
[1769819589350,0.001,2707.0,2706.4,1.27691972]
[1769819592148,11.36348901,2707.0,2706.4,1.27691972]
[1769819592319,11.36348901,2707.0,2706.2,0.92377902]
[1769819593147,0.9235657,2706.9,2706.2,0.92377902]
[1769819593521,0.9235657,2706.9,2706.2,9.99229063]
[1769819596653,12.28605471,2706.9,2706.2,0.92377902]
[1769819597834,12.28605471,2706.9,2706.1,3.69533969]
[1769819598051,12.28605471,2706.9,2706.2,1.37613168]
[1769819599861,12.28605471,2706.9,2706.2,10.13708333]
[1769819600559,0.9235657,2706.9,2706.2,10.13708333]
[1769819600870,3.6951389,2707.0,2706.2,10.13708333]
[1769819601037,0.001,2706.7,2706.2,10.13708333]
[1769819606870,0.81200133,2707.1,2706.4,9.36782532]
[1769819607040,0.81200133,2707.1,2706.3,5.46236682]
[1769819607041,0.81200133,2707.1,2706.6,9.38919306]
[1769819607241,0.81200133,2707.1,2706.7,10.312827]
[1769819610083,0.001,2707.5,2706.8,9.45183038]
[1769819611375,0.001,2707.5,2706.9,10.39577921]
[1769819611581,0.001,2707.5,2707.0,0.67448131]
[1769819611769,0.001,2707.5,2707.0,10.14669482]
[1769819612884,0.001,2707.3,2707.0,10.14669482]
[1769819613259,0.001,2707.3,2707.0,0.67448131]
[1769819613467,0.001,2707.3,2707.0,1.59800073]
[1769819614684,0.001,2707.3,2707.1,1.48244161]
[1769819619581,0.001,2707.3,2707.0,0.92351942]
[1769819624391,0.001,2707.1,2707.0,0.92351942]
[1769819629114,0.001,2707.1,2706.7,10.75835323]
[1769819633436,11.70937598,2707.1,2706.7,0.92363394]
[1769819633734,11.70937598,2707.1,2706.6,0.773]
[1769819633915,12.88041358,2707.1,2706.6,0.773]
[1769819636037,12.88041358,2707.1,2706.9,0.0011]
[1769819642438,13.80391267,2707.1,2705.9,3.69668164]
[1769819642617,13.80391267,2707.1,2706.0,1.66320018]
[1769819648862,13.80391267,2707.1,2706.2,0.0011]
[1769819657967,12.55051859,2706.9,2706.2,0.0011]
[1769819659040,12.55051859,2706.7,2706.2,0.0011]
[1769819659369,12.55051859,2706.7,2706.0,0.0011]
[1769819659572,12.55051859,2706.5,2706.0,0.0011]
[1769819661181,12.55051859,2706.3,2706.2,0.0011]
[1769819662884,12.55051859,2706.3,2706.0,0.0011]
[1769819663590,0.92372261,2706.5,2706.0,0.0011]
[1769819664291,13.4742412,2706.5,2706.0,0.0011]
[1769819664589,1.85163642,2706.4,2706.0,0.0011]
[1769819670467,15.32589498,2706.4,2706.0,0.0011]
[1769819670667,15.32589498,2706.4,2705.8,0.0011]
[1769819670966,15.32589498,2706.4,2705.6,0.92509143]
[1769819670967,15.32589498,2706.4,2705.6,0.0011]
[1769819671164,12.55051859,2706.2,2705.6,0.0011]
[1769819671784,12.55051859,2706.1,2705.6,0.0011]
[1769819672809,0.92387287,2706.0,2705.6,0.0011]
[1769819673519,13.47439146,2706.0,2705.8,0.0011]
[1769819677407,13.47439146,2706.0,2705.6,0.0011]
[1769819677609,1.71697467,2705.9,2705.6,0.0011]
[1769819679011,2.64088199,2705.9,2705.6,0.0011]
[1769819679817,1.71697467,2705.9,2705.6,0.0011]
[1769819680186,11.88604219,2705.9,2705.6,0.0011]
[1769819680379,0.92389493,2706.0,2705.6,0.0011]
[1769819680609,12.80993712,2706.0,2705.6,0.0011]
[1769819686310,12.80993712,2706.0,2705.8,0.0011]
[1769819688409,1.9030721,2706.3,2705.8,0.0011]
[1769819688605,11.88604219,2707.0,2706.0,5.57517921]
[1769819689193,0.001,2707.1,2706.0,5.57517921]
[1769819690512,0.001,2707.1,2706.2,5.62887756]
[1769819691727,0.001,2707.1,2706.2,5.65417374]
[1769819691916,0.001,2707.3,2706.6,5.65317374]
[1769819692423,0.001,2707.3,2706.7,6.60278607]
[1769819698400,0.001,2707.1,2706.7,6.60278607]
[1769819703134,0.001,2707.1,2706.7,0.92363394]
[1769819703834,11.88704219,2707.1,2706.5,3.69478586]
[1769819704135,11.88704219,2707.1,2706.7,0.92363055]
[1769819704506,0.001,2707.1,2706.7,0.92363055]
[1769819705541,0.001,2707.1,2706.6,3.69465419]
[1769819709982,0.001,2707.5,2706.8,6.09761562]
[1769819710184,0.001,2707.5,2706.9,7.65175917]
[1769819711881,0.001,2707.5,2706.9,0.9235657]
[1769819712181,0.001,2707.5,2706.8,0.0011]
[1769819713556,12.76214411,2707.4,2706.8,0.0011]
[1769819717460,0.001,2707.5,2706.8,6.25917062]
[1769819717754,12.76314411,2708.4,2707.1,6.25807062]
[1769819717964,0.001,2708.4,2707.5,6.25807062]
[1769819718284,0.001,2708.4,2706.9,0.85948736]
[1769819718285,0.001,2708.4,2707.8,6.27707004]
[1769819718781,12.76314411,2708.4,2707.4,5.47040702]
[1769819718980,12.76314411,2708.4,2707.2,6.27707004]
[1769819719186,12.76314411,2708.4,2707.4,6.29584552]
[1769819721191,12.76314411,2708.4,2707.5,0.92336103]
[1769819722183,12.76314411,2708.2,2707.5,0.92336103]
[1769819727608,12.76314411,2708.2,2707.4,3.69344413]
[1769819727769,13.68629017,2708.2,2707.4,0.92339513]
[1769819727968,12.76214411,2708.0,2707.4,0.92339513]
[1769819728206,12.76214411,2708.0,2707.3,0.92340648]
[1769819729689,13.68535583,2708.0,2706.9,0.9246657]
[1769819729878,13.68535583,2708.0,2706.9,0.0011]
[1769819730079,12.76214411,2707.8,2706.9,0.0011]
[1769819733199,12.76214411,2707.6,2706.9,0.0011]
[1769819733900,12.76214411,2707.6,2707.1,0.0011]
[1769819735787,13.68549602,2707.6,2707.1,0.0011]
[1769819745898,13.68549602,2707.6,2707.3,0.0011]
[1769819746119,14.64077242,2707.5,2707.3,0.0011]
[1769819751542,14.64077242,2707.5,2707.1,0.0011]
[1769819751543,15.5641379,2707.5,2707.1,0.0011]
[1769819758550,15.5641379,2707.5,2707.3,0.0011]
[1769819760765,13.27222282,2707.4,2706.5,0.0011]
[1769819761085,13.27222282,2707.4,2706.3,0.92374406]
[1769819761086,14.82863661,2707.4,2706.3,0.92376193]
[1769819762073,13.27222282,2706.8,2706.2,0.0011]
[1769819762279,13.27222282,2706.6,2706.2,0.0011]
[1769819762687,14.19590923,2706.6,2706.2,0.0011]
[1769819767002,13.48673338,2707.3,2706.2,7.00160408]
[1769819767215,14.41016262,2707.3,2706.4,7.00995892]
[1769819768474,14.41016262,2707.3,2706.5,0.92370219]
[1769819768806,13.48673338,2707.2,2706.5,0.92370219]
[1769819769818,1.55641379,2707.4,2706.5,7.95219031]
[1769819770017,14.41008015,2707.6,2706.5,7.95219031]
[1769819770311,13.48673338,2707.5,2706.7,0.0011]
[1769819770520,0.001,2707.3,2706.7,0.0011]
[1769819770713,13.48673338,2707.2,2706.7,0.0011]
[1769819771088,1.34977334,2707.3,2706.7,0.0011]
[1769819771487,14.83650672,2707.3,2706.7,0.0011]
[1769819779126,0.001,2707.3,2706.7,7.11656459]
[1769819779320,14.41000898,2707.8,2706.8,7.11446459]
[1769819780826,14.41000898,2707.8,2706.9,0.9235657]
[1769819781352,13.48673338,2708.1,2706.9,8.05422497]
[1769819781644,13.48673338,2708.1,2707.1,7.13065927]
[1769819783209,13.48673338,2708.1,2707.2,8.06989207]
[1769819783410,0.001,2707.6,2707.2,8.06989207]
[1769819784354,0.001,2707.6,2707.2,0.92346335]
[1769819786472,0.001,2707.6,2707.1,3.69385342]
[1769819786649,0.001,2707.6,2707.1,4.39401383]
[1769819792868,13.48773338,2707.6,2706.8,0.92357561]
[1769819793669,13.48773338,2707.6,2706.7,0.0011]
[1769819795670,13.48673338,2707.4,2707.0,0.0011]
[1769819798796,12.47457812,2707.2,2706.8,0.0011]
[1769819800895,12.47457812,2707.0,2706.5,0.0011]
[1769819808505,12.47457812,2707.0,2706.7,0.0011]
[1769819808798,13.39811,2707.0,2706.7,0.0011]
[1769819808998,13.39811,2707.0,2706.4,0.0011]
[1769819809498,12.47457812,2706.9,2706.4,0.0011]
[1769819809698,12.47457812,2706.7,2706.4,0.0011]
[1769819812319,1.339811,2706.8,2706.4,0.0011]
[1769819812519,7.58868075,2707.4,2706.5,7.3562257]
[1769819812520,0.001,2707.4,2706.5,7.3562257]
[1769819813625,0.001,2707.4,2706.8,7.36193545]
[1769819813822,0.001,2707.4,2706.7,5.46537069]
[1769819813823,0.001,2707.4,2707.0,7.36193545]
[1769819814493,0.001,2707.4,2707.1,0.92349746]
[1769819817929,0.001,2707.4,2707.1,8.30687305]
[1769819820635,0.001,2707.2,2707.1,8.30687305]
[1769819820834,0.001,2707.4,2707.1,8.30687305]
[1769819821030,0.001,2707.4,2707.2,0.87476991]
[1769819821408,0.001,2707.4,2707.2,8.27843914]
[1769819822636,0.001,2707.4,2707.3,0.92342924]
[1769819824419,0.001,2707.6,2707.3,0.92342924]
[1769819828622,0.001,2707.6,2707.2,4.56860885]
[1769819828623,12.66854602,2707.6,2707.2,0.92343847]
[1769819828822,12.66854602,2707.6,2706.7,3.69449634]
[1769819829019,12.66854602,2707.6,2706.8,1.20594275]
[1769819829644,12.66854602,2707.6,2706.8,7.44601815]
[1769819832351,12.66854602,2707.6,2706.9,0.9246657]
[1769819832643,0.001,2707.4,2706.9,0.9246657]
[1769819843053,0.001,2707.4,2706.9,8.42909079]
[1769819843354,3.69353835,2708.2,2706.9,8.42909079]
[1769819843355,0.001,2708.2,2707.4,5.46537069]
[1769819843557,0.001,2708.2,2707.5,14.31822615]
[1769819845129,0.001,2708.0,2707.6,0.92332693]
[1769819850652,0.001,2708.0,2707.6,13.92201601]
[1769819851312,12.66854602,2708.0,2707.5,2.24287832]
[1769819851583,13.93440062,2707.9,2707.5,1.69634125]
[1769819857288,0.001,2707.7,2707.5,1.69634125]
[1769819857493,0.001,2708.0,2707.5,1.69634125]
[1769819859458,0.001,2708.0,2707.5,15.17607516]
[1769819859884,0.001,2708.2,2707.6,13.47973391]
[1769819860106,0.001,2708.2,2707.7,14.99734143]
[1769819860289,0.001,2708.2,2707.7,13.47973391]
[1769819862294,0.001,2708.2,2707.8,0.92325873]
[1769819862795,0.001,2708.4,2707.8,14.40299264]
[1769819863000,0.001,2708.4,2707.9,13.47973391]
[1769819864374,0.001,2708.4,2708.0,14.40292445]
[1769819864567,0.001,2708.4,2708.1,0.773]
[1769819867110,0.001,2708.4,2708.2,0.92312236]
[1769819868288,0.31956259,2708.7,2708.2,0.92312236]
[1769819868487,0.31956259,2708.7,2708.3,0.53886118]
[1769819869113,1e-08,2708.8,2708.4,0.9230542]
[1769819876731,13.19517316,2708.8,2708.4,0.9230542]
[1769819878339,13.53215815,2710.4,2708.8,14.37005483]
[1769819878497,13.53215815,2710.4,2709.2,13.47973391]
[1769819878698,13.53215815,2710.4,2709.4,13.47973391]
[1769819878944,13.53215815,2710.4,2709.3,0.92274757]
[1769819878945,13.34032062,2710.4,2709.5,14.25273391]
[1769819879145,13.34032062,2710.4,2709.6,1.10322612]
[1769819880912,13.34032062,2710.4,2709.7,0.92261135]
[1769819882735,13.34032062,2710.4,2709.7,1.69561135]
[1769819893419,13.34032062,2710.4,2709.9,0.0011]
[1769819898341,13.19517315,2710.4,2709.9,0.0011]
[1769819904863,13.25787594,2710.6,2709.9,0.0011]
[1769819905071,13.25787594,2710.6,2710.1,0.0011]
[1769819905232,14.67589072,2710.6,2710.1,0.0011]
[1769819913579,14.67589072,2710.6,2709.6,0.92373571]
[1769819913580,13.25787594,2710.4,2709.6,0.92373571]
[1769819915278,13.25787594,2710.4,2709.7,0.92260019]
[1769819915453,13.25787594,2710.4,2709.9,0.92254326]
[1769819917287,13.25787594,2710.4,2709.9,0.0011]
[1769819918591,14.08602562,2710.5,2709.9,0.0011]
[1769819918954,0.92234444,2710.5,2709.9,0.0011]
[1769819920782,13.16368118,2710.6,2709.9,0.0011]
[1769819920988,14.4800493,2710.6,2709.9,0.0011]
[1769819923492,13.16368118,2710.4,2709.9,0.0011]
[1769819924879,13.16368118,2710.4,2709.6,0.0011]
[1769819925360,0.92240711,2710.3,2709.6,0.0011]
[1769819925561,13.16368118,2710.2,2709.6,0.0011]
[1769819925760,13.16368118,2710.0,2709.6,0.0011]
[1769819929273,13.16368118,2710.0,2709.8,0.0011]
[1769819929498,14.08619073,2710.0,2709.2,0.92278163]
[1769819929908,14.08619073,2710.0,2709.5,0.0011]
[1769819939610,14.08619073,2710.0,2709.0,1.69582867]
[1769819939811,13.16368118,2709.8,2709.0,1.69582867]
[1769819941754,14.08629253,2709.7,2709.0,0.773]
[1769819941909,13.16368118,2709.5,2708.8,0.0011]
[1769819944313,14.08639469,2709.4,2708.8,0.0011]
[1769819944514,15.88868877,2709.3,2708.8,0.0011]
[1769819950450,2.72500759,2709.3,2708.8,13.834887]
[1769819950613,0.001,2709.8,2709.0,13.833787]
[1769819952544,0.001,2709.8,2709.2,13.833787]
[1769819953455,0.001,2710.2,2709.3,13.833787]
[1769819953615,0.001,2710.2,2709.3,15.30944727]
[1769819954154,0.001,2709.6,2709.3,15.30944727]
[1769819954447,0.001,2710.2,2709.4,13.833787]
[1769819955638,0.001,2710.2,2709.6,13.833787]
[1769819955841,0.001,2710.2,2709.8,13.833787]
[1769819959554,0.001,2710.2,2709.9,0.92254326]
[1769819961352,0.001,2710.2,2709.8,14.75634408]
[1769819961549,0.001,2710.2,2709.8,0.92255708]
[1769819963734,0.001,2710.2,2709.7,3.69042484]
[1769819963946,0.001,2710.2,2709.8,1.84468232]
[1769819965551,0.001,2710.2,2709.8,15.67846932]
[1769819965853,13.18412659,2710.7,2709.9,14.75633026]
[1769819966061,14.10640139,2710.7,2709.9,14.75633026]
[1769819966368,0.001,2710.0,2709.9,14.75633026]
[1769819966532,0.001,2710.0,2709.9,16.31849578]
[1769819966861,3.68821722,2711.4,2710.0,13.833787]
[1769819967033,3.68821722,2711.4,2709.9,2.48470878]
[1769819967034,14.10615948,2711.4,2710.2,13.833787]
[1769819967357,14.10615948,2711.4,2710.1,6.22513442]
[1769819967358,13.18412659,2711.4,2710.4,13.833787]
[1769819967959,14.1061726,2711.4,2710.5,0.92233905]
[1769819968261,14.10615955,2711.4,2710.5,16.60080837]
[1769819968627,14.10616758,2711.4,2710.5,2.76702137]
[1769819968827,14.10616758,2711.4,2710.5,0.92233905]
[1769819969961,13.18412659,2711.6,2710.5,14.75612605]
[1769819970166,13.18412659,2711.9,2710.7,13.833787]
[1769819970541,13.18412659,2711.5,2710.6,1.84454823]
[1769819970858,13.18412659,2711.5,2710.5,0.92233905]
[1769819972343,5.45213442,2711.9,2710.5,0.92233905]
[1769819972344,13.18412659,2711.3,2710.5,0.92233905]
[1769819974869,14.10615049,2711.5,2710.5,14.75612605]
[1769819975033,14.10615049,2711.5,2710.7,13.833787]
[1769819976861,0.92198967,2711.6,2710.8,13.78876908]
[1769819977864,0.001,2711.3,2710.8,13.78876908]